bitfinex-derivatives/quotes_ETHF0:USTF0_20241005
["timestamp","ask_amount","ask_price","bid_price","bid_amount"]
[1728089201347,0.68695,2421.6,2421.5,1.19]
[1728089203354,0.3979,2421.6,2421.5,1.19]
[1728089204248,3.3038,2422.1,2421.5,1.5991]
[1728089204453,0.4091,2422.0,2421.8,1.19]
[1728089204753,0.6981,2422.0,2421.9,0.4074]
[1728089207654,0.4091,2422.0,2421.6,4.3978]
[1728089207866,0.28903,2421.7,2421.6,4.3978]
[1728089208758,0.28903,2421.8,2421.6,4.3978]
[1728089208962,0.28903,2421.8,2421.7,0.3917]
[1728089214459,4.1296,2421.8,2421.4,1.0730468]
[1728089214762,1.91254,2421.9,2421.4,1.0730468]
[1728089214763,0.28906,2421.5,2421.4,1.0730468]
[1728089215556,0.4142,2421.6,2421.4,1.3621168]
[1728089215557,0.70325,2421.6,2421.4,1.3621168]
[1728089215756,0.70325,2421.6,2421.5,1.19]
[1728089217358,0.4142,2421.6,2421.5,1.19]
[1728089217562,0.70325,2421.6,2421.5,1.19]
[1728089217752,0.28905,2421.6,2421.5,1.19]
[1728089218061,0.28905,2421.6,2421.5,1.5972]
[1728089223364,0.28905,2421.6,2421.5,1.19]
[1728089224561,4.1296,2421.6,2421.3,4.8186]
[1728089224763,0.8212,2421.5,2421.3,5.8916468]
[1728089224966,1.11027,2421.5,2421.3,6.1807268]
[1728089225866,0.396,2421.5,2421.3,5.8916468]
[1728089226067,0.396,2421.5,2421.4,0.28907]
[1728089226367,0.28905,2421.6,2421.3,5.8916468]
[1728089226368,4.1898,2422.0,2421.3,5.8916468]
[1728089226559,0.28903,2421.8,2421.6,1.19]
[1728089226764,0.28903,2421.8,2421.7,0.82]
[1728089227164,0.3896,2421.9,2421.7,0.82]
[1728089227365,0.67861,2421.9,2421.8,1.19]
[1728089229675,0.28901,2421.9,2421.8,1.19]
[1728089232775,1.2361,2422.1,2421.8,1.19]
[1728089232963,0.28901,2421.9,2421.8,1.19]
[1728089235365,0.3876,2422.1,2421.8,1.19]
[1728089235566,0.28899,2422.1,2422.0,1.19]
[1728089236068,0.28899,2422.1,2422.0,1.6102]
[1728089237166,1.2508,2422.3,2421.9,3.2078]
[1728089237478,0.7049,2422.0,2421.9,3.2078]
[1728089240274,0.7049,2422.0,2421.8,1.6103]
[1728089241077,0.7049,2422.0,2421.8,1.89932]
[1728089241772,0.7049,2422.0,2421.8,1.6103]
[1728089244078,0.7049,2422.0,2421.8,2.9723668]
[1728089245474,0.289,2422.0,2421.8,2.9723668]
[1728089246079,0.289,2422.0,2421.8,2.6833468]
[1728089246775,0.289,2422.0,2421.8,2.9723668]
[1728089248679,0.28899,2422.1,2421.8,2.9723668]
[1728089249284,0.289,2422.0,2421.8,2.9723668]
[1728089249782,0.289,2422.0,2421.8,2.6833468]
[1728089250683,0.4127,2422.2,2421.8,2.6833468]
[1728089250877,0.28899,2422.1,2421.8,2.9723568]
[1728089251884,0.289,2422.0,2421.8,2.9723568]
[1728089252575,0.4127,2422.2,2421.8,2.6833468]
[1728089252777,0.28898,2422.2,2422.0,1.19]
[1728089252975,0.28898,2422.2,2422.1,0.4174]
[1728089253178,0.28898,2422.2,2422.1,0.8189]
[1728089257288,0.70467,2422.3,2422.1,1.10788]
[1728089257478,0.4157,2422.3,2422.2,1.19]
[1728089258182,0.70466,2422.3,2422.2,1.19]
[1728089260986,0.70466,2422.3,2422.1,0.4015]
[1728089260987,4.5437,2422.3,2422.1,0.4015]
[1728089261193,0.28899,2422.1,2422.0,3.2078]
[1728089263887,0.289,2422.0,2421.9,2.6672468]
[1728089264089,0.289,2422.0,2421.9,3.18695789]
[1728089264386,0.289,2422.0,2421.9,2.6672468]
[1728089264790,0.7879,2422.2,2421.9,2.6672468]
[1728089264993,0.28899,2422.1,2421.9,2.6672468]
[1728089265392,0.7879,2422.2,2421.9,2.6672468]
[1728089265595,0.289,2422.0,2421.9,2.6672468]
[1728089269599,0.28901,2421.9,2421.8,3.2078]
[1728089269899,0.28905,2421.6,2421.5,1.6095702]
[1728089270099,0.28905,2421.6,2421.5,1.5998]
[1728089272902,0.28905,2421.6,2421.5,1.19]
[1728089273087,0.28906,2421.5,2421.4,1.19]
[1728089273294,1.11496,2421.5,2421.4,1.19]
[1728089273598,0.8259,2421.5,2421.4,1.19]
[1728089273799,1.11496,2421.5,2421.4,1.19]
[1728089274496,0.69236,2421.5,2421.4,1.19]
[1728089276590,1.12061,2421.7,2421.5,0.28905]
[1728089276591,0.28904,2421.7,2421.5,0.28905]
[1728089276898,0.28904,2421.7,2421.3,3.5962]
[1728089276899,0.28903,2421.8,2421.6,2.28914]
[1728089277398,0.70521,2421.9,2421.7,0.28903]
[1728089277699,0.70521,2421.9,2421.8,1.19]
[1728089280103,0.28902,2421.8,2421.7,1.19]
[1728089280799,0.28905,2421.6,2421.5,1.19]
[1728089289715,0.28904,2421.7,2421.5,1.19]
[1728089290011,0.28904,2421.7,2421.4,1.12336]
[1728089290012,0.28904,2421.7,2421.6,1.19]
[1728089294503,0.3937,2421.8,2421.6,1.19]
[1728089294710,0.4057,2421.9,2421.7,0.403]
[1728089294904,0.69471,2421.9,2421.7,1.11003]
[1728089300105,0.69471,2421.9,2421.8,1.19]
[1728089302906,0.4233,2422.0,2421.9,0.28901]
[1728089303117,0.28899,2422.1,2421.9,1.47901]
[1728089303416,0.289,2422.0,2421.9,1.19]
[1728089304415,0.28899,2422.1,2421.9,1.19]
[1728089304818,0.3929,2422.2,2421.9,1.19]
[1728089305016,0.28899,2422.1,2421.9,1.19]
[1728089305214,0.28899,2422.1,2421.9,1.47901]
[1728089305719,0.28899,2422.1,2421.9,1.19]
[1728089311220,0.28899,2422.1,2421.9,1.47901]
[1728089313213,0.3929,2422.2,2422.0,0.28899]
[1728089313214,0.28899,2422.2,2422.0,0.28899]
[1728089313415,0.28899,2422.2,2422.1,1.19]
[1728089329237,0.3887,2422.3,2422.1,1.19]
[1728089329447,0.67767,2422.3,2422.1,1.47898]
[1728089329943,0.28897,2422.3,2422.1,1.47898]
[1728089330247,0.28897,2422.3,2422.2,0.8339]
[1728089332540,0.28897,2422.3,2422.2,0.4176]
[1728089339552,1.10707,2422.5,2422.1,4.3978]
[1728089339745,0.69937,2422.2,2422.1,4.3978]
[1728089341149,0.69937,2422.2,2422.1,5.47799968]
[1728089341349,0.69937,2422.2,2422.1,4.3978]
[1728089341745,0.69937,2422.2,2422.1,5.47799968]
[1728089341944,0.69937,2422.2,2422.1,4.3978]
[1728089343151,0.69937,2422.2,2422.1,5.47799968]
[1728089343947,0.69937,2422.2,2422.1,2.27019968]
[1728089344147,0.69937,2422.2,2422.1,5.47799968]
[1728089344645,0.69937,2422.2,2422.1,5.99907533]
[1728089344951,0.69937,2422.2,2422.0,2.42049952]
[1728089344952,0.4104,2422.2,2422.0,2.27019968]
[1728089345151,0.69999,2422.1,2422.0,2.27019968]
[1728089345354,0.69999,2422.1,2422.0,1.71114976]
[1728089346954,0.69999,2422.1,2422.0,1.7112959]
[1728089347354,0.69999,2422.1,2422.0,0.5212959]
[1728089347651,0.69999,2422.1,2422.0,1.7112959]
[1728089349555,0.69999,2422.1,2422.0,2.0002959]
[1728089349955,0.28899,2422.1,2422.0,2.0002959]
[1728089350158,0.28899,2422.1,2422.0,2.4172959]
[1728089350452,0.28899,2422.1,2422.0,1.896]
[1728089350658,0.28899,2422.1,2422.0,2.4174818]
[1728089351156,0.28899,2422.1,2422.0,2.1284818]
[1728089353960,0.28899,2422.1,2422.0,1.607]
[1728089354259,0.28899,2422.1,2422.0,3.71321147]
[1728089354456,0.28899,2422.1,2422.0,3.71319198]
[1728089354659,0.28899,2422.1,2422.0,3.19170941]
[1728089354863,0.28899,2422.1,2422.0,4.27190909]
[1728089355253,0.28899,2422.1,2422.0,2.66490909]
[1728089355658,0.28899,2422.1,2422.0,3.85490909]
[1728089356054,0.28899,2422.1,2422.0,2.27019968]
[1728089356456,0.28899,2422.1,2422.0,1.19]
[1728089357362,0.28899,2422.1,2422.0,1.479]
[1728089361762,0.28899,2422.1,2422.0,2.00053816]
[1728089362966,0.28899,2422.1,2422.0,1.71153816]
[1728089363163,0.69938,2422.2,2422.0,2.00052816]
[1728089363365,0.69938,2422.2,2422.1,1.71153816]
[1728089363559,0.69938,2422.2,2422.1,2.11423816]
[1728089364863,0.28898,2422.2,2422.1,2.11423816]
[1728089365068,0.28898,2422.2,2422.1,2.1145296]
[1728089365269,0.28898,2422.2,2422.1,1.5927]
[1728089365771,0.28898,2422.2,2422.1,2.63635239]
[1728089367167,0.28898,2422.2,2422.1,2.11452619]
[1728089368063,0.28898,2422.2,2422.1,3.19756095]
[1728089368371,0.28898,2422.2,2422.1,2.67573476]
[1728089368557,0.28898,2422.2,2422.1,3.19751841]
[1728089369864,0.28898,2422.2,2421.8,4.29083476]
[1728089369865,10.1288,2422.2,2421.8,4.29083476]
[1728089370060,10.1288,2422.2,2421.7,1.08303476]
[1728089370061,0.28902,2421.8,2421.7,1.08303476]
[1728089370265,0.72255,2421.9,2421.5,1.08303476]
[1728089370465,0.28906,2421.5,2421.4,1.19]
[1728089371564,3.2078,2421.5,2421.2,1.08303476]
[1728089371758,3.2078,2421.5,2421.0,2.27303476]
[1728089371759,0.28911,2421.1,2421.0,2.27303476]
[1728089371958,0.28911,2421.1,2421.0,1.71165466]
[1728089372162,0.28911,2421.1,2421.0,1.19]
[1728089373267,0.28912,2421.0,2420.9,0.3917]
[1728089373474,0.8323,2421.3,2420.9,1.87082]
[1728089373665,0.8323,2421.3,2421.1,1.19]
[1728089374176,0.28909,2421.2,2421.1,1.19]
[1728089375066,0.8323,2421.3,2420.9,1.5817]
[1728089375381,0.28913,2420.9,2420.8,1.19]
[1728089381282,0.67493,2420.9,2420.8,1.19]
[1728089389391,0.28913,2420.9,2420.8,1.19]
[1728089397584,0.28913,2420.9,2420.8,5.3204]
[1728089397782,0.2891,2421.2,2420.9,0.28912]
[1728089397987,0.28911,2421.1,2421.0,0.3867]
[1728089398182,0.70121,2421.1,2421.0,0.8016]
[1728089398390,0.4121,2421.1,2421.0,0.8016]
[1728089399201,0.70121,2421.1,2421.0,0.8016]
[1728089402188,0.4121,2421.1,2421.0,0.8016]
[1728089402693,0.70121,2421.1,2421.0,0.8016]
[1728089405399,0.70121,2421.1,2421.0,0.4149]
[1728089406401,0.70121,2421.1,2420.7,3.2078]
[1728089406402,1.13488,2421.1,2420.7,4.3978]
[1728089406706,1.13488,2421.1,2420.7,4.7972]
[1728089406707,0.28914,2420.8,2420.7,4.7972]
[1728089407404,0.28914,2420.9,2420.7,4.7972]
[1728089407606,0.28914,2420.8,2420.7,4.7972]
[1728089407803,0.805,2421.0,2420.7,4.7972]
[1728089408004,0.28914,2420.9,2420.7,4.7972]
[1728089408796,1.286,2421.3,2421.1,0.2891]
[1728089408797,0.38508,2421.3,2421.1,0.2891]
[1728089408997,0.28908,2421.3,2421.2,1.6138]
[1728089409200,0.28905,2421.6,2421.2,2.0014]
[1728089409407,0.28905,2421.6,2421.5,1.19]
[1728089409705,0.3944,2421.7,2421.5,1.19]
[1728089409907,0.3944,2421.7,2421.5,2.0373]
[1728089410303,0.28905,2421.6,2421.5,2.0373]
[1728089410804,0.3944,2421.7,2421.5,2.0373]
[1728089411007,0.68344,2421.7,2421.6,0.4252]
[1728089411507,0.28904,2421.7,2421.6,0.4252]
[1728089411810,0.3962,2422.0,2421.6,4.5548]
[1728089412006,0.28901,2421.9,2421.8,1.19]
[1728089413203,0.3962,2422.0,2421.6,1.19]
[1728089413408,0.28903,2421.7,2421.6,1.19]
[1728089416311,0.4217,2421.8,2421.5,1.6138]
[1728089416510,0.3865,2421.6,2421.4,1.19]
[1728089416706,0.28906,2421.5,2421.4,1.19]
[1728089416911,0.67555,2421.6,2421.5,1.19]
[1728089431111,0.28905,2421.6,2421.5,1.19]
[1728089433919,1.14582,2422.0,2421.5,5.3196]
[1728089434115,3.2078,2422.2,2421.9,1.19]
[1728089434325,4.70526,2422.2,2422.0,0.408]
[1728089434629,0.70789,2422.1,2422.0,0.408]
[1728089448430,0.28902,2421.8,2421.7,1.9925]
[1728089449533,3.2078,2422.0,2421.5,1.08035098]
[1728089449720,0.28905,2421.6,2421.5,0.4109]
[1728089452633,0.28906,2421.5,2421.4,1.19]
[1728089452926,0.28907,2421.4,2421.3,1.19]
[1728089453132,0.67487,2421.4,2421.3,1.19]
[1728089455227,0.3907,2421.7,2421.3,5.3196]
[1728089455424,0.67973,2421.7,2421.6,1.19]
[1728089460740,0.28903,2421.7,2421.6,1.19]
[1728089461633,0.28903,2421.7,2421.6,5.60865]
[1728089461836,1.20591,2422.0,2421.6,5.60865]
[1728089462136,0.289,2422.0,2421.9,1.19]
[1728089464634,0.289,2422.0,2421.9,1.6147]
[1728089467137,4.1288,2422.0,2421.7,1.19]
[1728089467347,0.28902,2421.8,2421.7,1.19]
[1728089467750,0.71502,2421.8,2421.7,1.19]
[1728089469544,0.71502,2421.8,2421.6,0.4114]
[1728089469545,0.426,2421.8,2421.6,0.4114]
[1728089469846,0.28903,2421.7,2421.6,0.4114]
[1728089474551,4.4938,2422.3,2421.6,0.4114]
[1728089474747,0.28903,2421.7,2421.6,0.4114]
[1728089474944,0.28903,2421.7,2421.6,1.6014]
[1728089475951,0.28903,2421.7,2421.6,6.02005]
[1728089476145,0.28903,2421.8,2421.6,7.10039098]
[1728089476348,0.28903,2421.8,2421.7,1.6154]
[1728089477743,0.28903,2421.7,2421.6,1.6014]
[1728089483456,0.28903,2421.7,2421.6,0.4114]
[1728089483651,4.018,2421.8,2421.4,1.49725098]
[1728089483851,0.28906,2421.5,2421.4,0.8121]
[1728089484058,0.28906,2421.5,2421.4,2.0021]
[1728089485665,0.28906,2421.5,2421.4,2.53041563]
[1728089485860,0.28906,2421.5,2421.4,2.0021]
[1728089486961,0.28906,2421.5,2421.4,2.53043084]
[1728089487168,0.28906,2421.5,2421.4,2.0021]
[1728089487457,0.28906,2421.5,2421.4,2.53042422]
[1728089488967,0.28906,2421.5,2421.4,3.6107752]
[1728089489163,0.28906,2421.5,2421.4,2.53042422]
[1728089489468,0.28906,2421.5,2421.4,3.6107752]
[1728089490263,4.4238,2421.8,2421.4,3.6107752]
[1728089490463,6.966,2422.5,2421.7,1.19]
[1728089490464,8.3708,2422.1,2421.7,1.19]
[1728089490660,4.0888,2422.1,2421.9,1.19]
[1728089490966,0.289,2422.0,2421.9,1.19]
[1728089491362,4.4178,2422.0,2421.9,1.19]
[1728089492369,0.28902,2421.8,2421.7,1.19]
[1728089492870,0.4099,2421.8,2421.5,1.48985098]
[1728089493061,0.28905,2421.6,2421.5,0.4095]
[1728089493368,0.28905,2421.6,2421.5,2.12788312]
[1728089493564,0.28905,2421.6,2421.5,3.2082341]
[1728089493970,0.28905,2421.6,2421.5,2.12788312]
[1728089494174,0.28905,2421.6,2421.5,3.20824851]
[1728089494471,0.28905,2421.6,2421.5,3.20826612]
[1728089495564,0.8103,2421.8,2421.5,3.20826612]
[1728089495766,0.28905,2421.6,2421.5,2.67985098]
[1728089495965,0.28905,2421.6,2421.5,2.12793468]
[1728089496268,0.28905,2421.6,2421.5,3.20828566]
[1728089496569,0.28905,2421.6,2421.5,2.12793468]
[1728089496972,0.28905,2421.6,2421.5,3.20828566]
[1728089497165,0.28905,2421.6,2421.5,2.67985098]
[1728089497373,0.28905,2421.6,2421.5,1.19]
[1728089501269,0.28903,2421.8,2421.6,0.28904]
[1728089501468,0.28903,2421.8,2421.7,1.19]
[1728089504178,0.28903,2421.8,2421.7,1.5782]
[1728089511585,0.28902,2421.9,2421.7,1.86723]
[1728089513081,0.28902,2421.9,2421.7,1.5782]
[1728089513274,1.11722,2422.0,2421.7,1.5782]
[1728089513480,0.28902,2421.8,2421.7,1.5782]
[1728089513981,1.11722,2422.0,2421.7,1.5782]
[1728089514185,0.28902,2421.8,2421.7,1.5782]
[1728089519383,0.28902,2421.8,2421.7,2.10687602]
[1728089521780,1.11722,2422.0,2421.7,2.10687602]
[1728089521975,0.3947,2422.0,2421.9,1.47901]
[1728089522177,3.2078,2422.1,2421.9,1.7184413]
[1728089522383,3.49679,2422.1,2422.0,0.6934]
[1728089522582,3.49679,2422.1,2422.0,0.7904]
[1728089524683,0.28899,2422.1,2422.0,0.7904]
[1728089528486,0.289,2422.0,2421.9,1.19]
[1728089528697,0.6901,2422.0,2421.9,1.19]
[1728089529088,0.289,2422.0,2421.9,1.19]
[1728089529599,0.289,2422.1,2421.9,1.19]
[1728089529796,0.28899,2422.1,2422.0,0.4085]
[1728089529996,0.28899,2422.1,2422.0,0.8064]
[1728089530595,0.28899,2422.1,2422.0,1.2059]
[1728089534702,0.289,2422.0,2421.9,1.19]
[1728089534905,0.28901,2421.9,2421.8,1.19]
[1728089535213,0.68291,2421.9,2421.8,1.19]
[1728089537312,0.28902,2421.8,2421.7,1.48175098]
[1728089537509,0.28905,2421.6,2421.5,1.47525098]
[1728089537811,0.28905,2421.6,2421.5,3.07115098]
[1728089540815,0.3939,2421.9,2421.5,3.07115098]
[1728089541012,0.68292,2421.9,2421.7,1.47903]
[1728089541513,0.68292,2421.9,2421.8,0.3935]
[1728089542916,0.28902,2421.8,2421.7,1.19]
[1728089544212,0.3939,2421.9,2421.7,1.19]
[1728089544213,0.68292,2421.9,2421.7,1.47903]
[1728089544511,0.3939,2421.9,2421.7,1.19]
[1728089544717,0.68292,2421.9,2421.7,1.19]
[1728089544908,0.3939,2421.9,2421.7,1.19]
[1728089545217,0.28902,2421.8,2421.7,1.19]
[1728089546417,1.07572,2421.9,2421.7,1.47903]
[1728089546718,0.28902,2421.8,2421.7,1.47903]
[1728089548317,0.68292,2421.9,2421.7,1.47903]
[1728089548519,0.68292,2421.9,2421.7,1.88183]
[1728089549305,0.68292,2421.9,2421.7,1.5928]
[1728089550215,0.28902,2421.8,2421.7,1.5928]
[1728089550412,0.68292,2421.9,2421.7,1.5928]
[1728089551118,0.28902,2421.8,2421.7,1.19]
[1728089552808,1.10272,2421.9,2421.7,1.19]
[1728089563419,1.10272,2421.9,2421.7,2.27204507]
[1728089565131,0.28902,2421.8,2421.7,2.27204507]
[1728089571527,0.28902,2421.8,2421.7,1.19]
[1728089571727,0.28902,2421.8,2421.7,1.7187094]
[1728089574630,0.28902,2421.8,2421.7,0.5287094]
[1728089577039,0.28902,2421.8,2421.7,0.52897377]
[1728089578540,0.28902,2421.8,2421.7,1.61101884]
[1728089580341,0.3939,2421.9,2421.7,2.67340921]
[1728089580631,0.68292,2421.9,2421.8,3.20240855]
[1728089581030,0.68292,2421.9,2421.8,4.39240855]
[1728089581831,0.68292,2421.9,2421.8,2.80126739]
[1728089582939,0.68292,2421.9,2421.8,4.39250903]
[1728089583233,0.68292,2421.9,2421.8,3.86328671]
[1728089583635,0.68292,2421.9,2421.8,4.39245407]
[1728089583833,0.68292,2421.9,2421.8,4.39243787]
[1728089584033,0.68292,2421.9,2421.8,2.80121243]
[1728089585341,0.68292,2421.9,2421.8,4.39260011]
[1728089585941,0.68292,2421.9,2421.8,4.39255461]
[1728089586841,0.68292,2421.9,2421.8,3.86338725]
[1728089587434,0.68292,2421.9,2421.8,3.86338444]
[1728089590945,0.68292,2421.9,2421.8,3.86338377]
[1728089592246,0.68292,2421.9,2421.8,2.27204507]
[1728089592543,0.68292,2421.9,2421.8,3.86342377]
[1728089593249,0.68292,2421.9,2421.8,2.27204507]
[1728089593544,0.68292,2421.9,2421.8,1.19]
[1728089595145,0.68292,2421.9,2421.8,1.71926936]
[1728089596448,0.28902,2421.9,2421.8,1.71926936]
[1728089598342,0.70251,2422.0,2421.8,1.71926936]
[1728089598543,0.70251,2422.0,2421.9,1.71926936]
[1728089599340,0.28901,2422.0,2421.9,1.71926936]
[1728089601948,0.28901,2422.0,2421.9,1.19]
[1728089602155,0.28901,2422.0,2421.9,1.6025]
[1728089604552,0.28901,2422.0,2421.9,2.0099]
[1728089608670,0.4058,2422.1,2421.9,3.09194507]
[1728089608870,0.289,2422.0,2421.9,3.09194507]
[1728089609062,0.289,2422.0,2421.9,5.21154211]
[1728089609466,0.289,2422.0,2421.9,3.62092049]
[1728089610668,0.289,2422.0,2421.9,5.21141031]
[1728089611069,0.4058,2422.1,2421.9,5.2114023]
[1728089611274,0.4058,2422.1,2421.9,3.09194507]
[1728089611463,0.289,2422.0,2421.9,3.09194507]
[1728089611670,0.289,2422.0,2421.9,3.62084719]
[1728089612566,0.4058,2422.1,2421.9,3.09194507]
[1728089612771,0.4058,2422.1,2421.9,3.6208266]
[1728089613071,0.289,2422.0,2421.9,3.09194507]
[1728089613275,0.289,2422.0,2421.9,3.62082644]
[1728089613876,0.38496,2422.4,2422.1,0.28898]
[1728089614073,3.2078,2422.5,2422.3,1.19]
[1728089614074,3.91525,2422.5,2422.3,1.19]
[1728089614575,0.28895,2422.4,2422.3,1.19]
[1728089614771,0.28895,2422.4,2422.3,1.5903]
[1728089618374,3.91525,2422.5,2422.3,1.5903]
[1728089618873,0.28895,2422.4,2422.3,1.5903]
[1728089621474,3.6263,2422.5,2422.2,0.3923]
[1728089621680,0.28896,2422.3,2422.2,0.3923]
[1728089628883,0.8425,2422.4,2422.1,1.19]
[1728089629089,0.28897,2422.2,2422.1,1.19]
[1728089638495,0.28897,2422.3,2422.1,1.47899]
[1728089638694,0.28897,2422.3,2422.2,1.5969]
[1728089645401,0.28897,2422.2,2422.1,1.08293897]
[1728089645702,0.28899,2422.1,2422.0,1.19]
[1728089645899,0.69439,2422.1,2422.0,1.19]
[1728089646297,1.11759,2422.1,2422.0,1.19]
[1728089656012,0.28899,2422.1,2422.0,1.19]
[1728089657719,0.28898,2422.2,2422.0,2.56192897]
[1728089657922,0.28898,2422.2,2422.1,1.19]
[1728089658122,0.28898,2422.2,2422.1,1.6014]
[1728089661712,0.28898,2422.2,2422.1,1.9953]
[1728089667217,0.28898,2422.2,2422.1,2.52308577]
[1728089667417,0.28898,2422.2,2422.1,1.9953]
[1728089684242,0.70548,2422.2,2422.1,1.9953]
[1728089685144,0.70548,2422.2,2422.1,2.52372642]
[1728089685447,0.70548,2422.2,2422.1,1.6014]
[1728089685746,0.70548,2422.2,2422.1,1.19]
[1728089685946,0.28899,2422.1,2422.0,1.19]
[1728089686145,0.69029,2422.1,2422.0,1.19]
[1728089688843,0.69029,2422.1,2422.0,2.80164829]
[1728089691151,0.69029,2422.1,2422.0,1.71870932]
[1728089691950,0.69029,2422.1,2422.0,1.19]
[1728089698953,0.28899,2422.1,2422.0,1.19]
[1728089699158,0.28899,2422.1,2422.0,4.40515633]
[1728089699457,0.28899,2422.1,2422.0,4.82035633]
[1728089699854,0.28899,2422.1,2422.0,4.82039925]
[1728089700050,0.28899,2422.1,2422.0,5.34928223]
[1728089700256,0.28899,2422.1,2422.0,4.39297958]
[1728089700653,0.28899,2422.1,2422.0,4.93408223]
[1728089700962,0.28899,2422.1,2422.0,4.39296322]
[1728089701253,0.28899,2422.1,2422.0,3.86407088]
[1728089701558,0.28899,2422.1,2422.0,4.3930032]
[1728089701753,0.28899,2422.1,2422.0,4.39300514]
[1728089702260,0.28899,2422.1,2422.0,3.30972505]
[1728089702462,0.28899,2422.1,2422.0,4.93413351]
[1728089702654,0.28899,2422.1,2422.0,1.61220676]
[1728089703851,0.28899,2422.1,2422.0,0.52893426]
[1728089704262,0.28899,2422.1,2422.0,1.61220676]
[1728089705159,0.28899,2422.1,2422.0,0.52893426]
[1728089705359,0.28899,2422.1,2422.0,1.61220676]
[1728089706161,0.28899,2422.1,2422.0,0.52893426]
[1728089706462,0.28899,2422.1,2422.0,1.61220676]
[1728089707777,0.28899,2422.1,2422.0,1.61222351]
[1728089711157,0.28899,2422.1,2422.0,1.0832725]
[1728089711562,0.28899,2422.1,2422.0,1.61226154]
[1728089711967,0.28899,2422.1,2422.0,0.52898904]
[1728089712759,0.28899,2422.1,2422.0,1.61226154]
[1728089712964,0.28899,2422.1,2422.0,0.52898904]
[1728089714161,0.8208,2422.2,2421.9,2.6781725]
[1728089714371,0.289,2422.0,2421.9,1.5949]
[1728089714871,0.289,2422.0,2421.9,2.12386188]
[1728089715069,0.289,2422.0,2421.9,1.5949]
[1728089715570,0.289,2422.0,2421.9,2.12385822]
[1728089716375,0.289,2422.0,2421.9,1.5949]
[1728089717074,0.289,2422.0,2421.9,2.12384115]
[1728089717473,0.289,2422.0,2421.9,1.5949]
[1728089718173,0.289,2422.0,2421.9,2.12383775]
[1728089718368,0.289,2422.0,2421.9,1.5949]
[1728089719466,0.289,2422.0,2421.9,2.1238303]
[1728089721377,0.289,2422.0,2421.9,4.79800794]
[1728089722373,0.289,2422.0,2421.9,3.2071028]
[1728089722675,0.289,2422.0,2421.9,4.79769197]
[1728089723066,0.289,2422.0,2421.9,3.2071028]
[1728089723274,0.289,2422.0,2421.9,4.79769357]
[1728089724174,0.289,2422.0,2421.9,3.60769357]
[1728089724377,0.289,2422.0,2421.8,1.0832725]
[1728089724378,10.1288,2422.0,2421.8,1.0832725]
[1728089724566,10.1288,2422.0,2421.7,1.62440846]
[1728089724567,0.28902,2421.8,2421.7,1.0832725]
[1728089724773,0.28902,2421.8,2421.7,4.68144395]
[1728089724972,0.28902,2421.9,2421.7,7.19900001]
[1728089725172,0.28902,2421.9,2421.8,4.40454473]
[1728089725468,0.28902,2421.9,2421.8,5.3319349]
[1728089726975,0.28902,2421.9,2421.8,4.80324473]
[1728089727175,0.28902,2421.9,2421.8,5.33192948]
[1728089728384,0.28902,2421.9,2421.8,5.33173413]
[1728089729076,0.28902,2421.9,2421.8,5.33170638]
[1728089731777,0.28902,2421.9,2421.8,4.80302163]
[1728089731973,0.28902,2421.9,2421.8,5.3317449]
[1728089732280,0.28902,2421.9,2421.8,3.70758788]
[1728089732686,0.28902,2421.9,2421.8,5.3317626]
[1728089733274,0.28902,2421.9,2421.8,3.74161569]
[1728089733481,0.28902,2421.9,2421.8,5.33184616]
[1728089735185,0.28902,2421.9,2421.8,5.33176927]
[1728089736481,0.28902,2421.9,2421.8,4.79032178]
[1728089736790,0.28902,2421.9,2421.8,3.20009131]
[1728089738590,4.34053,2422.3,2421.8,4.79037268]
[1728089738786,3.90706,2422.3,2422.2,1.19]
[1728089738979,0.69926,2422.3,2422.2,1.19]
[1728089739684,0.28896,2422.3,2422.2,1.71857483]
[1728089740083,0.28896,2422.3,2422.2,3.21570206]
[1728089740285,0.28896,2422.3,2422.2,2.13297483]
[1728089740690,0.28896,2422.3,2422.2,2.54557483]
[1728089741685,0.28896,2422.3,2422.2,2.017]
[1728089741889,0.28896,2422.3,2422.2,2.54525143]
[1728089742387,0.28896,2422.3,2422.2,2.54516124]
[1728089743592,0.28896,2422.3,2422.2,3.62788847]
[1728089744292,0.28896,2422.3,2422.2,4.03998847]
[1728089744488,0.28896,2422.3,2422.2,3.51182723]
[1728089745092,0.28896,2422.3,2422.2,3.09742723]
[1728089747492,0.28896,2422.3,2422.2,2.0147]
[1728089747893,0.28896,2422.3,2422.2,1.19]
[1728089778808,0.28896,2422.3,2422.2,1.71770997]
[1728089779317,0.28896,2422.3,2422.2,2.8004372]
[1728089781512,0.28896,2422.3,2422.2,4.38831413]
[1728089781811,0.28896,2422.3,2422.2,1.19]
[1728089783309,0.223,2423.0,2422.2,6.92881147]
[1728089783512,0.223,2423.0,2422.7,1.19]
[1728089783513,3.49671,2422.8,2422.7,1.19]
[1728089787120,0.28891,2422.8,2422.7,1.19]
[1728089791013,0.8168,2423.0,2422.7,1.19]
[1728089791217,1.10568,2423.0,2422.9,1.18707058]
[1728089791417,0.28889,2422.9,2422.8,0.4055]
[1728089791628,1.12836,2423.2,2422.9,0.28889]
[1728089791629,0.28886,2423.2,2422.9,0.28889]
[1728089791815,0.48083,2423.5,2423.2,0.28885]
[1728089792016,0.70961,2423.6,2423.4,1.19]
[1728089792217,0.2888,2423.7,2423.5,0.4233]
[1728089792417,5.09994,2423.9,2423.6,1.19]